[Event "Titled Tuesday Blitz July 18 Early 2023"]
[White "Wernberg, Hugo"]
[Black "DCacheiro"]
[WhiteFideId "1737511"]
[WhiteElo "2346"]
[BlackElo "2558"]
[Result "1-0"]
[Round "2"]
[TimeControl "180+2"]
[Date "2023.07.18"]
[WhiteClock "0:00:33"]
[BlackClock "0:00:05"]
[Board "140"]

1. d4 {[%clk 0:03:00]}  Nf6 {[%clk 0:02:59]} 2. c4 {[%clk 0:03:00]}  e6 {[%clk 0:03:00]} 3. Nf3 {[%clk 0:02:55]}  d5 {[%clk 0:02:59]} 4. g3 {[%clk 0:02:55]}  Be7 {[%clk 0:02:56]} 5. Bg2 {[%clk 0:02:55]}  O-O {[%clk 0:02:57]} 6. O-O {[%clk 0:02:55]}  dxc4 {[%clk 0:02:58]} 7. Qc2 {[%clk 0:02:54]}  b5 {[%clk 0:02:58]} 8. a4 {[%clk 0:02:54]}  b4 {[%clk 0:02:58]} 9. Ne5 {[%clk 0:02:52]}  Qxd4 {[%clk 0:02:57]} 10. Bxa8 {[%clk 0:02:51]}  Qxe5 {[%clk 0:02:57]} 11. Bf4 {[%clk 0:02:51]}  Qh5 {[%clk 0:02:51]} 12. Bf3 {[%clk 0:02:50]}  Qa5 {[%clk 0:02:50]} 13. Qxc4 {[%clk 0:02:44]}  e5 {[%clk 0:02:47]} 14. Bg5 {[%clk 0:02:33]}  Ba6 {[%clk 0:02:39]} 15. Qc2 {[%clk 0:02:31]}  c5 {[%clk 0:02:05]} 16. Nd2 {[%clk 0:02:28]}  Qc7 {[%clk 0:01:54]} 17. Rac1 {[%clk 0:02:10]}  Nc6 {[%clk 0:01:38]} 18. Bxf6 {[%clk 0:01:47]}  Nd4 {[%clk 0:01:37]} 19. Bxe7 {[%clk 0:01:19]}  Nxc2 {[%clk 0:01:30]} 20. Bxf8 {[%clk 0:01:20]}  Kxf8 {[%clk 0:01:10]} 21. Rxc2 {[%clk 0:01:20]}  c4 {[%clk 0:00:56]} 22. Nxc4 {[%clk 0:01:06]}  Bxc4 {[%clk 0:00:49]} 23. Rfc1 {[%clk 0:01:06]}  g6 {[%clk 0:00:29]} 24. Rxc4 {[%clk 0:01:05]}  Qd6 {[%clk 0:00:28]} 25. Kg2 {[%clk 0:00:58]}  f5 {[%clk 0:00:21]} 26. Rc6 {[%clk 0:00:54]}  Qd2 {[%clk 0:00:19]} 27. R1c2 {[%clk 0:00:51]}  Qe1 {[%clk 0:00:16]} 28. Bd5 {[%clk 0:00:39]}  e4 {[%clk 0:00:12]} 29. Rc7 {[%clk 0:00:34]}  Qd1 {[%clk 0:00:05]} 30. Rf7+ {[%clk 0:00:33]} 1-0


[Site "https://www.chess.com"]

[Event "Titled Tuesday Blitz July 18 Early 2023"]
[White "Alahakoon, Isuru"]
[Black "Shubenkova, Veronika"]
[WhiteFideId "9900993"]
[BlackFideId "44124040"]
[WhiteElo "2345"]
[BlackElo "2557"]
[Result "1-0"]
[Round "2"]
[TimeControl "180+2"]
[Date "2023.07.18"]
[WhiteClock "0:00:08"]
[BlackClock "0:00:27"]
[Board "141"]

1. Nf3 {[%clk 0:02:59]}  d5 {[%clk 0:02:24]} 2. e3 {[%clk 0:02:56]}  e6 {[%clk 0:02:24]} 3. c4 {[%clk 0:02:56]}  c6 {[%clk 0:02:23]} 4. d4 {[%clk 0:02:54]}  f5 {[%clk 0:02:23]} 5. Nc3 {[%clk 0:02:54]}  Nf6 {[%clk 0:02:21]} 6. Bd3 {[%clk 0:02:54]}  Bd6 {[%clk 0:02:21]} 7. O-O {[%clk 0:02:54]}  O-O {[%clk 0:02:21]} 8. b3 {[%clk 0:02:51]}  Ne4 {[%clk 0:02:19]} 9. Ne2 {[%clk 0:02:51]}  Nd7 {[%clk 0:02:18]} 10. Bb2 {[%clk 0:02:50]}  Qe7 {[%clk 0:02:18]} 11. Ne5 {[%clk 0:02:42]}  Rf6 {[%clk 0:02:12]} 12. f3 {[%clk 0:02:40]}  Ng5 {[%clk 0:02:12]} 13. Nf4 {[%clk 0:02:37]}  Rh6 {[%clk 0:02:10]} 14. cxd5 {[%clk 0:02:26]}  cxd5 {[%clk 0:02:07]} 15. Rc1 {[%clk 0:02:19]}  Nf7 {[%clk 0:02:06]} 16. Nxf7 {[%clk 0:01:38]}  Qxf7 {[%clk 0:02:04]} 17. g3 {[%clk 0:01:12]}  g5 {[%clk 0:02:03]} 18. Ne2 {[%clk 0:01:05]}  Qh5 {[%clk 0:02:02]} 19. Rf2 {[%clk 0:01:04]}  Nf6 {[%clk 0:01:57]} 20. Qf1 {[%clk 0:00:49]}  Bd7 {[%clk 0:01:57]} 21. Qg2 {[%clk 0:00:36]}  Rf8 {[%clk 0:01:53]} 22. Nc3 {[%clk 0:00:32]}  a6 {[%clk 0:01:51]} 23. Na4 {[%clk 0:00:31]}  Kh8 {[%clk 0:01:44]} 24. Nc5 {[%clk 0:00:29]}  Bc8 {[%clk 0:01:44]} 25. Rfc2 {[%clk 0:00:27]}  f4 {[%clk 0:01:40]} 26. g4 {[%clk 0:00:25]}  Qh4 {[%clk 0:01:30]} 27. e4 {[%clk 0:00:25]}  Nxg4 {[%clk 0:01:27]} 28. fxg4 {[%clk 0:00:19]}  f3 {[%clk 0:01:26]} 29. Qf2 {[%clk 0:00:19]}  Bxh2+ {[%clk 0:01:24]} 30. Qxh2 {[%clk 0:00:18]}  Qxg4+ {[%clk 0:01:21]} 31. Rg2 {[%clk 0:00:13]}  f2+ {[%clk 0:01:07]} 32. Kf1 {[%clk 0:00:10]}  Rxh2 {[%clk 0:01:07]} 33. Rxg4 {[%clk 0:00:10]}  Rh1+ {[%clk 0:01:07]} 34. Kg2 {[%clk 0:00:10]}  Rxc1 {[%clk 0:01:02]} 35. Bxc1 {[%clk 0:00:11]}  e5 {[%clk 0:01:02]} 36. Rxg5 {[%clk 0:00:11]}  dxe4 {[%clk 0:01:02]} 37. Nxe4 {[%clk 0:00:09]}  b5 {[%clk 0:00:44]} 38. Nxf2 {[%clk 0:00:09]}  exd4 {[%clk 0:00:42]} 39. Bb2 {[%clk 0:00:09]}  Bb7+ {[%clk 0:00:42]} 40. Kg1 {[%clk 0:00:08]}  h6 {[%clk 0:00:27]} 41. Rg4 {[%clk 0:00:08]} 1-0


[Site "https://www.chess.com"]

[Event "Titled Tuesday Blitz July 18 Early 2023"]
[White "Ezat, Mohamed"]
[Black "Ziatdinov, Raset"]
[WhiteFideId "10600906"]
[BlackFideId "2015323"]
[WhiteElo "2539"]
[BlackElo "2336"]
[Result "1-0"]
[Round "2"]
[TimeControl "180+2"]
[Date "2023.07.18"]
[WhiteClock "0:00:10"]
[BlackClock "0:00:00"]
[Board "144"]

1. d4 {[%clk 0:03:00]}  Nf6 {[%clk 0:03:00]} 2. c4 {[%clk 0:02:58]}  g6 {[%clk 0:02:59]} 3. Nc3 {[%clk 0:02:56]}  Bg7 {[%clk 0:03:00]} 4. e4 {[%clk 0:02:55]}  d6 {[%clk 0:02:58]} 5. Be2 {[%clk 0:02:55]}  O-O {[%clk 0:02:54]} 6. Bg5 {[%clk 0:02:54]}  c5 {[%clk 0:02:50]} 7. d5 {[%clk 0:02:53]}  e6 {[%clk 0:02:49]} 8. Qd2 {[%clk 0:02:52]}  exd5 {[%clk 0:02:47]} 9. exd5 {[%clk 0:02:52]}  Re8 {[%clk 0:02:47]} 10. Nf3 {[%clk 0:02:52]}  Bg4 {[%clk 0:02:46]} 11. O-O {[%clk 0:02:52]}  Nbd7 {[%clk 0:02:46]} 12. h3 {[%clk 0:02:52]}  Bxf3 {[%clk 0:02:46]} 13. Bxf3 {[%clk 0:02:53]}  Ne5 {[%clk 0:02:47]} 14. Be2 {[%clk 0:02:53]}  Qb6 {[%clk 0:02:45]} 15. Qc2 {[%clk 0:02:49]}  h6 {[%clk 0:02:41]} 16. Bf4 {[%clk 0:02:47]}  g5 {[%clk 0:02:33]} 17. Bg3 {[%clk 0:02:43]}  Ng6 {[%clk 0:02:32]} 18. Rae1 {[%clk 0:02:36]}  Nd7 {[%clk 0:02:12]} 19. Bd3 {[%clk 0:02:15]}  Nde5 {[%clk 0:01:58]} 20. Bxg6 {[%clk 0:01:43]}  Nxg6 {[%clk 0:01:56]} 21. Ne4 {[%clk 0:01:41]}  Rad8 {[%clk 0:01:01]} 22. b3 {[%clk 0:01:25]}  Bd4 {[%clk 0:00:47]} 23. Re2 {[%clk 0:01:18]}  Kg7 {[%clk 0:00:17]} 24. Rfe1 {[%clk 0:00:17]}  Ne5 {[%clk 0:00:13]} 25. Nxd6 {[%clk 0:00:15]}  Qxd6 {[%clk 0:00:13]} 26. Qf5 {[%clk 0:00:13]}  f6 {[%clk 0:00:12]} 27. h4 {[%clk 0:00:12]}  Re7 {[%clk 0:00:12]} 28. h5 {[%clk 0:00:12]}  Rde8 {[%clk 0:00:11]} 29. Kh2 {[%clk 0:00:12]}  Rf7 {[%clk 0:00:02]} 30. f4 {[%clk 0:00:10]}  gxf4 {[%clk 0:00:00]} 31. Bh4 {[%clk 0:00:10]} 1-0


[Site "https://www.chess.com"]

[Event "Titled Tuesday Blitz July 18 Early 2023"]
[White "Hajiyev, Kanan"]
[Black "Buscar, Michael"]
[WhiteFideId "13404148"]
[BlackFideId "2603616"]
[WhiteElo "2538"]
[BlackElo "2335"]
[Result "1-0"]
[Round "2"]
[TimeControl "180+2"]
[Date "2023.07.18"]
[WhiteClock "0:00:49"]
[BlackClock "0:00:27"]
[Board "145"]

1. d4 {[%clk 0:03:00]}  Nf6 {[%clk 0:02:58]} 2. Nf3 {[%clk 0:03:01]}  e6 {[%clk 0:02:58]} 3. c4 {[%clk 0:03:02]}  d5 {[%clk 0:02:58]} 4. cxd5 {[%clk 0:03:03]}  exd5 {[%clk 0:02:58]} 5. Nc3 {[%clk 0:03:04]}  c5 {[%clk 0:02:59]} 6. Qc2 {[%clk 0:03:05]}  Nc6 {[%clk 0:02:58]} 7. e3 {[%clk 0:03:05]}  cxd4 {[%clk 0:02:56]} 8. Nxd4 {[%clk 0:03:04]}  Nxd4 {[%clk 0:02:55]} 9. exd4 {[%clk 0:03:05]}  a6 {[%clk 0:02:52]} 10. Bg5 {[%clk 0:03:04]}  Be7 {[%clk 0:02:51]} 11. Bd3 {[%clk 0:03:03]}  h6 {[%clk 0:02:50]} 12. Bh4 {[%clk 0:03:02]}  Be6 {[%clk 0:02:50]} 13. O-O {[%clk 0:03:01]}  O-O {[%clk 0:02:48]} 14. f4 {[%clk 0:03:01]}  Rc8 {[%clk 0:02:28]} 15. f5 {[%clk 0:02:56]}  Bd7 {[%clk 0:02:29]} 16. Rae1 {[%clk 0:02:55]}  Re8 {[%clk 0:02:22]} 17. h3 {[%clk 0:02:29]}  Qb6 {[%clk 0:02:10]} 18. Qf2 {[%clk 0:02:22]}  Qa5 {[%clk 0:01:43]} 19. Re5 {[%clk 0:02:14]}  Bd8 {[%clk 0:01:25]} 20. Bxf6 {[%clk 0:02:08]}  Bxf6 {[%clk 0:01:22]} 21. Rxd5 {[%clk 0:02:07]}  Qc7 {[%clk 0:01:17]} 22. Ne4 {[%clk 0:01:48]}  Rxe4 {[%clk 0:01:11]} 23. Bxe4 {[%clk 0:01:46]}  Bc6 {[%clk 0:01:07]} 24. Rc5 {[%clk 0:01:45]}  Qd6 {[%clk 0:01:05]} 25. Rc4 {[%clk 0:01:29]}  Bxe4 {[%clk 0:00:55]} 26. Rxc8+ {[%clk 0:01:28]}  Kh7 {[%clk 0:00:56]} 27. Rd1 {[%clk 0:01:22]}  Bd5 {[%clk 0:00:53]} 28. b3 {[%clk 0:01:15]}  Bg5 {[%clk 0:00:45]} 29. Re1 {[%clk 0:00:55]}  Qf6 {[%clk 0:00:43]} 30. Ree8 {[%clk 0:00:52]}  g6 {[%clk 0:00:33]} 31. fxg6+ {[%clk 0:00:52]}  fxg6 {[%clk 0:00:27]} 32. Rc7+ {[%clk 0:00:49]} 1-0


[Site "https://www.chess.com"]

[Event "Titled Tuesday Blitz July 18 Early 2023"]
[White "Girya, Olga"]
[Black "Saucey, Michel"]
[WhiteFideId "4195752"]
[BlackFideId "601845"]
[WhiteElo "2536"]
[BlackElo "2325"]
[Result "1-0"]
[Round "2"]
[TimeControl "180+2"]
[Date "2023.07.18"]
[WhiteClock "0:00:14"]
[BlackClock "0:00:11"]
[Board "146"]

1. d4 {[%clk 0:03:00]}  d5 {[%clk 0:02:59]} 2. Nf3 {[%clk 0:03:01]}  Nf6 {[%clk 0:02:59]} 3. c4 {[%clk 0:03:01]}  e6 {[%clk 0:02:59]} 4. Nc3 {[%clk 0:03:01]}  Bb4 {[%clk 0:02:58]} 5. Qb3 {[%clk 0:02:58]}  c5 {[%clk 0:02:55]} 6. dxc5 {[%clk 0:02:46]}  Na6 {[%clk 0:02:51]} 7. Bg5 {[%clk 0:02:41]}  Qa5 {[%clk 0:02:45]} 8. Bxf6 {[%clk 0:02:38]}  gxf6 {[%clk 0:02:44]} 9. cxd5 {[%clk 0:02:38]}  Nxc5 {[%clk 0:02:41]} 10. Qc2 {[%clk 0:02:27]}  Na4 {[%clk 0:02:39]} 11. Rc1 {[%clk 0:02:19]}  Nxc3 {[%clk 0:02:11]} 12. bxc3 {[%clk 0:02:18]}  Ba3 {[%clk 0:02:11]} 13. Rb1 {[%clk 0:02:12]}  Bd7 {[%clk 0:02:04]} 14. dxe6 {[%clk 0:01:46]}  fxe6 {[%clk 0:02:04]} 15. e3 {[%clk 0:01:30]}  Rc8 {[%clk 0:01:58]} 16. Rb3 {[%clk 0:01:11]}  O-O {[%clk 0:01:31]} 17. Bd3 {[%clk 0:01:09]}  Rxc3 {[%clk 0:01:25]} 18. Qxc3 {[%clk 0:00:52]}  Qxc3+ {[%clk 0:01:23]} 19. Rxc3 {[%clk 0:00:52]}  Bb4 {[%clk 0:01:23]} 20. Kd2 {[%clk 0:00:52]}  Rc8 {[%clk 0:01:22]} 21. Rc1 {[%clk 0:00:52]}  e5 {[%clk 0:01:14]} 22. Be4 {[%clk 0:00:39]}  Be6 {[%clk 0:01:00]} 23. a3 {[%clk 0:00:31]}  Rd8+ {[%clk 0:00:49]} 24. Ke2 {[%clk 0:00:29]}  Bxc3 {[%clk 0:00:47]} 25. Rxc3 {[%clk 0:00:29]}  Rd7 {[%clk 0:00:41]} 26. h3 {[%clk 0:00:21]}  Kg7 {[%clk 0:00:26]} 27. g4 {[%clk 0:00:20]}  h5 {[%clk 0:00:24]} 28. gxh5 {[%clk 0:00:18]}  Bxh3 {[%clk 0:00:23]} 29. Nh4 {[%clk 0:00:18]}  Kh6 {[%clk 0:00:22]} 30. Bf3 {[%clk 0:00:16]}  Kg5 {[%clk 0:00:19]} 31. Ng6 {[%clk 0:00:16]}  e4 {[%clk 0:00:15]} 32. Bxe4 {[%clk 0:00:15]}  Bg4+ {[%clk 0:00:15]} 33. Bf3 {[%clk 0:00:14]}  Bxf3+ {[%clk 0:00:15]} 34. Kxf3 {[%clk 0:00:14]}  Kxh5 {[%clk 0:00:11]} 35. Nf4+ {[%clk 0:00:14]} 1-0


[Site "https://www.chess.com"]

[Event "Titled Tuesday Blitz July 18 Early 2023"]
[White "ArtemDyachuk"]
[Black "Okike, David"]
[BlackFideId "8500134"]
[WhiteElo "2526"]
[BlackElo "2324"]
[Result "1-0"]
[Round "2"]
[TimeControl "180+2"]
[Date "2023.07.18"]
[WhiteClock "0:00:05"]
[BlackClock "0:01:37"]
[Board "147"]

1. e4 {[%clk 0:03:00]}  c5 {[%clk 0:02:59]} 2. Nf3 {[%clk 0:02:59]}  Nc6 {[%clk 0:03:00]} 3. d4 {[%clk 0:02:58]}  cxd4 {[%clk 0:02:59]} 4. Nxd4 {[%clk 0:02:59]}  Nf6 {[%clk 0:02:59]} 5. Nc3 {[%clk 0:02:59]}  d6 {[%clk 0:03:00]} 6. Bg5 {[%clk 0:02:57]}  a6 {[%clk 0:02:58]} 7. Qd3 {[%clk 0:02:48]}  e6 {[%clk 0:02:54]} 8. O-O-O {[%clk 0:02:48]}  Bd7 {[%clk 0:02:53]} 9. Be2 {[%clk 0:02:39]}  Qb6 {[%clk 0:02:48]} 10. f4 {[%clk 0:02:10]}  Qxd4 {[%clk 0:02:45]} 11. Qxd4 {[%clk 0:02:11]}  Nxd4 {[%clk 0:02:45]} 12. Rxd4 {[%clk 0:02:10]}  Bc6 {[%clk 0:02:37]} 13. Bf3 {[%clk 0:02:02]}  e5 {[%clk 0:02:36]} 14. fxe5 {[%clk 0:01:52]}  dxe5 {[%clk 0:02:36]} 15. Rd3 {[%clk 0:01:52]}  Be7 {[%clk 0:02:32]} 16. Be3 {[%clk 0:00:26]}  O-O {[%clk 0:02:28]} 17. g4 {[%clk 0:00:26]}  Rfd8 {[%clk 0:02:24]} 18. Rxd8+ {[%clk 0:00:22]}  Rxd8 {[%clk 0:02:23]} 19. g5 {[%clk 0:00:23]}  Ne8 {[%clk 0:02:20]} 20. Nd5 {[%clk 0:00:22]}  Bxd5 {[%clk 0:02:05]} 21. exd5 {[%clk 0:00:23]}  Nd6 {[%clk 0:02:02]} 22. h4 {[%clk 0:00:22]}  f5 {[%clk 0:01:58]} 23. gxf6 {[%clk 0:00:18]}  gxf6 {[%clk 0:01:59]} 24. Bh6 {[%clk 0:00:11]}  Kh8 {[%clk 0:01:57]} 25. b3 {[%clk 0:00:10]}  b5 {[%clk 0:01:56]} 26. Kd2 {[%clk 0:00:09]}  Rg8 {[%clk 0:01:55]} 27. Be3 {[%clk 0:00:04]}  Rg3 {[%clk 0:01:53]} 28. Rf1 {[%clk 0:00:04]}  f5 {[%clk 0:01:52]} 29. Be2 {[%clk 0:00:02]}  f4 {[%clk 0:01:50]} 30. Bf2 {[%clk 0:00:02]}  Rg2 {[%clk 0:01:50]} 31. Bf3 {[%clk 0:00:01]}  Rh2 {[%clk 0:01:50]} 32. Kd3 {[%clk 0:00:02]}  Bxh4 {[%clk 0:01:49]} 33. Bc5 {[%clk 0:00:02]}  Be7 {[%clk 0:01:48]} 34. c4 {[%clk 0:00:02]}  bxc4+ {[%clk 0:01:47]} 35. bxc4 {[%clk 0:00:02]}  Rxa2 {[%clk 0:01:47]} 36. Rb1 {[%clk 0:00:01]}  Ra3+ {[%clk 0:01:45]} 37. Bxa3 {[%clk 0:00:01]}  e4+ {[%clk 0:01:44]} 38. Bxe4 {[%clk 0:00:01]}  Nxe4 {[%clk 0:01:44]} 39. Bxe7 {[%clk 0:00:01]}  Nf2+ {[%clk 0:01:44]} 40. Kd4 {[%clk 0:00:02]}  Kg7 {[%clk 0:01:44]} 41. d6 {[%clk 0:00:02]}  Kf7 {[%clk 0:01:43]} 42. c5 {[%clk 0:00:03]}  Ke6 {[%clk 0:01:43]} 43. c6 {[%clk 0:00:04]}  Ng4 {[%clk 0:01:43]} 44. c7 {[%clk 0:00:04]}  Kd7 {[%clk 0:01:37]} 45. Rb8 {[%clk 0:00:05]} 1-0


[Site "https://www.chess.com"]

[Event "Titled Tuesday Blitz July 18 Early 2023"]
[White "Andreassen, Lars"]
[Black "Bilan, Danila"]
[WhiteFideId "1504878"]
[BlackFideId "24161918"]
[WhiteElo "2320"]
[BlackElo "2518"]
[Result "0-1"]
[Round "2"]
[TimeControl "180+2"]
[Date "2023.07.18"]
[WhiteClock "0:00:00"]
[BlackClock "0:00:05"]
[Board "150"]

1. d4 {[%clk 0:02:40]}  d5 {[%clk 0:02:57]} 2. Nf3 {[%clk 0:02:41]}  Nf6 {[%clk 0:02:57]} 3. c4 {[%clk 0:02:40]}  c6 {[%clk 0:02:58]} 4. Nc3 {[%clk 0:02:41]}  e6 {[%clk 0:02:58]} 5. Bg5 {[%clk 0:02:36]}  Nbd7 {[%clk 0:02:57]} 6. e3 {[%clk 0:02:37]}  Qa5 {[%clk 0:02:58]} 7. Bxf6 {[%clk 0:02:34]}  Nxf6 {[%clk 0:02:59]} 8. a3 {[%clk 0:02:21]}  Ne4 {[%clk 0:02:47]} 9. Qc2 {[%clk 0:02:17]}  Bb4 {[%clk 0:02:43]} 10. Rc1 {[%clk 0:02:14]}  Bxc3+ {[%clk 0:02:41]} 11. bxc3 {[%clk 0:02:13]}  Qxa3 {[%clk 0:02:42]} 12. Bd3 {[%clk 0:02:08]}  Nf6 {[%clk 0:02:29]} 13. O-O {[%clk 0:02:08]}  Qd6 {[%clk 0:02:20]} 14. c5 {[%clk 0:02:05]}  Qc7 {[%clk 0:02:15]} 15. Ne5 {[%clk 0:02:05]}  Nd7 {[%clk 0:02:07]} 16. f4 {[%clk 0:02:02]}  g6 {[%clk 0:01:51]} 17. g4 {[%clk 0:01:54]}  b6 {[%clk 0:01:49]} 18. cxb6 {[%clk 0:01:50]}  axb6 {[%clk 0:01:50]} 19. h4 {[%clk 0:01:41]}  Bb7 {[%clk 0:01:37]} 20. h5 {[%clk 0:01:33]}  f5 {[%clk 0:01:04]} 21. hxg6 {[%clk 0:01:22]}  Nxe5 {[%clk 0:01:03]} 22. fxe5 {[%clk 0:01:15]}  hxg6 {[%clk 0:01:02]} 23. Rf2 {[%clk 0:00:53]}  Qh7 {[%clk 0:00:47]} 24. Rh2 {[%clk 0:00:50]}  Qxh2+ {[%clk 0:00:41]} 25. Qxh2 {[%clk 0:00:51]}  Rxh2 {[%clk 0:00:41]} 26. Kxh2 {[%clk 0:00:52]}  Ra2+ {[%clk 0:00:41]} 27. Kg3 {[%clk 0:00:45]}  Ba6 {[%clk 0:00:33]} 28. Bxa6 {[%clk 0:00:42]}  Rxa6 {[%clk 0:00:34]} 29. gxf5 {[%clk 0:00:41]}  gxf5 {[%clk 0:00:35]} 30. Kf4 {[%clk 0:00:41]}  Ra3 {[%clk 0:00:25]} 31. Kg5 {[%clk 0:00:41]}  Kf7 {[%clk 0:00:25]} 32. Rh1 {[%clk 0:00:40]}  Kg7 {[%clk 0:00:23]} 33. Rh6 {[%clk 0:00:39]}  Rxc3 {[%clk 0:00:15]} 34. Rxe6 {[%clk 0:00:39]}  b5 {[%clk 0:00:15]} 35. Kxf5 {[%clk 0:00:30]}  b4 {[%clk 0:00:14]} 36. Rg6+ {[%clk 0:00:28]}  Kf8 {[%clk 0:00:10]} 37. e4 {[%clk 0:00:22]}  dxe4 {[%clk 0:00:07]} 38. Kxe4 {[%clk 0:00:23]}  b3 {[%clk 0:00:07]} 39. Rg1 {[%clk 0:00:21]}  Ke7 {[%clk 0:00:07]} 40. Rg7+ {[%clk 0:00:19]}  Ke6 {[%clk 0:00:06]} 41. Rg6+ {[%clk 0:00:20]}  Kd7 {[%clk 0:00:07]} 42. Rg1 {[%clk 0:00:20]}  b2 {[%clk 0:00:05]} 43. Rb1 {[%clk 0:00:20]}  Rb3 {[%clk 0:00:05]} 44. Kf5 {[%clk 0:00:19]}  Rb5 {[%clk 0:00:05]} 45. Kf6 {[%clk 0:00:18]}  Ke8 {[%clk 0:00:04]} 46. e6 {[%clk 0:00:18]}  Rb6 {[%clk 0:00:04]} 47. Rh1 {[%clk 0:00:16]}  Kd8 {[%clk 0:00:01]} 48. Rh8+ {[%clk 0:00:16]}  Kc7 {[%clk 0:00:02]} 49. Rh7+ {[%clk 0:00:15]}  Kb8 {[%clk 0:00:02]} 50. e7 {[%clk 0:00:15]}  c5+ {[%clk 0:00:01]} 51. Kf7 {[%clk 0:00:11]}  Rb7 {[%clk 0:00:01]} 52. Rh1 {[%clk 0:00:02]}  cxd4 {[%clk 0:00:02]} 53. Rb1 {[%clk 0:00:01]}  d3 {[%clk 0:00:01]} 54. Rxb2 {[%clk 0:00:02]}  Rxb2 {[%clk 0:00:01]} 55. e8=Q+ {[%clk 0:00:01]}  Kb7 {[%clk 0:00:02]} 56. Qd7+ {[%clk 0:00:01]}  Ka6 {[%clk 0:00:03]} 57. Qxd3+ {[%clk 0:00:01]}  Rb5 {[%clk 0:00:04]} 58. Ke7 {[%clk 0:00:01]}  Kb6 {[%clk 0:00:03]} 59. Kd7 {[%clk 0:00:01]}  Rc5 {[%clk 0:00:04]} 60. Qd4 {[%clk 0:00:00]}  Kb5 {[%clk 0:00:05]} 0-1


[Site "https://www.chess.com"]

[Event "Titled Tuesday Blitz July 18 Early 2023"]
[White "Wang, Alexander J"]
[Black "Yeritsyan, Hayk"]
[WhiteFideId "30955270"]
[BlackFideId "13307320"]
[WhiteElo "2297"]
[BlackElo "2512"]
[Result "0-1"]
[Round "2"]
[TimeControl "180+2"]
[Date "2023.07.18"]
[WhiteClock "0:00:12"]
[BlackClock "0:00:10"]
[Board "156"]

1. e4 {[%clk 0:03:00]}  c6 {[%clk 0:02:59]} 2. d4 {[%clk 0:02:51]}  d5 {[%clk 0:02:59]} 3. f3 {[%clk 0:02:48]}  e6 {[%clk 0:02:58]} 4. Nc3 {[%clk 0:02:45]}  Nf6 {[%clk 0:02:58]} 5. Be3 {[%clk 0:02:39]}  Be7 {[%clk 0:02:56]} 6. g3 {[%clk 0:02:36]}  O-O {[%clk 0:02:56]} 7. Bg2 {[%clk 0:02:35]}  b5 {[%clk 0:02:55]} 8. a3 {[%clk 0:02:34]}  a5 {[%clk 0:02:55]} 9. h3 {[%clk 0:02:32]}  Ba6 {[%clk 0:02:53]} 10. e5 {[%clk 0:02:22]}  Nfd7 {[%clk 0:02:53]} 11. Nge2 {[%clk 0:02:16]}  c5 {[%clk 0:02:47]} 12. O-O {[%clk 0:01:45]}  cxd4 {[%clk 0:02:45]} 13. Bxd4 {[%clk 0:01:44]}  Nc6 {[%clk 0:02:45]} 14. f4 {[%clk 0:01:43]}  Nxd4 {[%clk 0:02:42]} 15. Nxd4 {[%clk 0:01:42]}  b4 {[%clk 0:02:41]} 16. Nce2 {[%clk 0:01:40]}  Qb6 {[%clk 0:02:36]} 17. Kh2 {[%clk 0:01:36]}  Rfc8 {[%clk 0:02:31]} 18. axb4 {[%clk 0:01:21]}  axb4 {[%clk 0:02:28]} 19. c3 {[%clk 0:01:14]}  bxc3 {[%clk 0:02:20]} 20. bxc3 {[%clk 0:01:15]}  Bc4 {[%clk 0:02:16]} 21. Qd2 {[%clk 0:01:10]}  Rxa1 {[%clk 0:02:08]} 22. Rxa1 {[%clk 0:01:09]}  Rb8 {[%clk 0:02:08]} 23. f5 {[%clk 0:00:59]}  Nxe5 {[%clk 0:02:00]} 24. fxe6 {[%clk 0:00:59]}  fxe6 {[%clk 0:02:00]} 25. Nf4 {[%clk 0:00:59]}  Bg5 {[%clk 0:01:27]} 26. Qe1 {[%clk 0:00:46]}  Qb2 {[%clk 0:00:49]} 27. Kh1 {[%clk 0:00:34]}  Bf6 {[%clk 0:00:39]} 28. Ndxe6 {[%clk 0:00:28]}  Re8 {[%clk 0:00:32]} 29. Rd1 {[%clk 0:00:26]}  Kf7 {[%clk 0:00:10]} 30. Nxd5 {[%clk 0:00:17]}  Rxe6 {[%clk 0:00:10]} 31. Nf4 {[%clk 0:00:13]}  Re7 {[%clk 0:00:11]} 32. Nd5 {[%clk 0:00:12]}  Bxd5 {[%clk 0:00:10]} 33. Bxd5+ {[%clk 0:00:12]}  Kf8 {[%clk 0:00:11]} 34. Qg1 {[%clk 0:00:10]}  g6 {[%clk 0:00:09]} 35. Bg2 {[%clk 0:00:09]}  Kg7 {[%clk 0:00:09]} 36. Qf1 {[%clk 0:00:08]}  Qxc3 {[%clk 0:00:09]} 37. Rd6 {[%clk 0:00:09]}  Nc4 {[%clk 0:00:06]} 38. Rd1 {[%clk 0:00:07]}  Ne3 {[%clk 0:00:06]} 39. Qg1 {[%clk 0:00:08]}  Nxd1 {[%clk 0:00:06]} 40. Qxd1 {[%clk 0:00:08]}  Qe1+ {[%clk 0:00:07]} 41. Qxe1 {[%clk 0:00:09]}  Rxe1+ {[%clk 0:00:07]} 42. Kh2 {[%clk 0:00:09]}  Be5 {[%clk 0:00:08]} 43. h4 {[%clk 0:00:09]}  Re3 {[%clk 0:00:09]} 44. Kh3 {[%clk 0:00:09]}  Rxg3+ {[%clk 0:00:09]} 45. Kh2 {[%clk 0:00:10]}  Rxg2+ {[%clk 0:00:09]} 46. Kxg2 {[%clk 0:00:11]}  Kf6 {[%clk 0:00:10]} 47. Kh3 {[%clk 0:00:11]}  h5 {[%clk 0:00:10]} 48. Kg2 {[%clk 0:00:12]} 0-1


[Site "https://www.chess.com"]